[Event "34th MPL National U14G-ch 2022"]
[Site "Ahmedabad"]
[Date "2022.05.11"]
[Round "6.4"]
[White "Sachi Jain"]
[Black "Sneha Halder"]
[Result "0-1"]
[ECO "C00"]
[WhiteElo "1768"]
[BlackElo "1557"]
[Annotator "NA RC COMBH"]
[PlyCount "144"]
[EventDate "2022.05.09"]
[EventType "swiss"]
[EventCountry "IND"]
[SourceTitle "playchess.com"]
[Source "ChessBase"]
[SourceQuality "1"]
[TimeControl "5400+30"]

1. e4 {[%emt 0:00:33]} e6 {[%emt 0:04:13]} 2. d3 {[%emt 0:00:33]} d5 {[%emt 0:00:11]} 3. Nd2 {[%emt 0:00:08]} Nf6 {[%emt 0:00:46]} 4. Ngf3 {[%emt 0:01:25]} dxe4 {[%emt 0:02:13]} 5. dxe4 {[%emt 0:00:07]} Bc5 {[%emt 0:00:28]} 6. h3 {[%emt 0:02:37]} Nc6 {[%emt 0:00:44]} 7. g3 {[%emt 0:00:53]} O-O {[%emt 0:03:40]} 8. Bg2 {[%emt 0:00:14]} e5 {[%emt 0:00:40]} 9. O-O {[%emt 0:01:47]} h6 {[%emt 0:01:17]} 10. Qe2 {[%emt 0:02:24]} Be6 {[%emt 0:03:06]} 11. Rd1 {[%emt 0:00:37]} Bb6 {[%emt 0:05:24]} 12. c3 {[%emt 0:01:45]} Qd6 {[%emt 0:02:24]} 13. Nf1 {[%emt 0:03:13]} Qc5 {[%emt 0:03:09]} 14. Be3 {[%emt 0:10:07]} Qc4 {[%emt 0:00:12]} 15. Qxc4 {[%emt 0:08:38]} Bxc4 {[%emt 0:00:10]} 16. N3d2 {[%emt 0:03:31]} Be6 {[%emt 0:00:37]} 17. f4 {[%emt 0:05:00]} g6 {[%emt 0:01:13]} 18. Kh2 {[%emt 0:05:02]} Rfd8 {[%emt 0:01:41]} 19. Nb3 {[%emt 0:05:56]} Bc4 {[%emt 0:06:11]} 20. fxe5 {[%emt 0:13:05]} Nxe5 {[%emt 0:06:09]} 21. Bd4 {[%emt 0:04:15]} Re8 {[%emt 0:03:27]} 22. Ne3 {[%emt 0:02:17]} Be2 {[%emt 0:01:49]} 23. Rd2 {[%emt 0:06:14]} Ba6 {[%emt 0:04:29]} 24. Rf2 {[%emt 0:02:38]} Nfd7 {[%emt 0:02:46]} 25. Nd5 {[%emt 0:02:54]} c6 {[%emt 0:09:39]} 26. Nf6+ {[%emt 0:06:14]} Nxf6 {[%emt 0:00:13]} 27. Rxf6 {[%emt 0:00:02]} Nd7 {[%emt 0:02:39]} 28. Rf2 {[%emt 0:02:39]} Bc7 {[%emt 0:05:56]} 29. Rd1 {[%emt 0:02:24]} Bc4 {[%emt 0:07:23]} 30. Be3 {[%emt 0:02:12]} Ne5 {[%emt 0:05:37]} 31. Bxh6 {[%emt 0:01:20]} Nd3 {[%emt 0:00:13]} 32. Rfd2 {[%emt 0:00:19]} Bxb3 {[%emt 0:00:14]} 33. axb3 {[%emt 0:00:42]} Nc5 {[%emt 0:00:05]} 34. Rf2 {[%emt 0:03:33]} Bb6 {[%emt 0:02:52]} 35. Rdf1 {[%emt 0:01:30]} Re7 {[%emt 0:01:32]} 36. Bg5 {[%emt 0:00:15]} Rd7 {[%emt 0:00:27]} 37. Re2 {[%emt 0:01:20]} Nxb3 {[%emt 0:00:34]} 38. e5 {[%emt 0:00:01]} Re8 {[%emt 0:00:22]} 39. Rfe1 {[%emt 0:00:39]} Nc5 {[%emt 0:00:31]} 40. Bf6 {[%emt 0:00:38]} Bc7 {[%emt 0:01:04]} 41. Re3 {[%emt 0:00:36]} Rd2 {[%emt 0:01:21]} 42. b4 {[%emt 0:00:35]} Nd3 {[%emt 0:00:23]} 43. R1e2 {[%emt 0:00:26]} Rxe2 {[%emt 0:01:00]} 44. Rxe2 {[%emt 0:00:03]} Nxe5 {[%emt 0:00:05]} 45. Bxe5 {[%emt 0:01:39]} Bxe5 {[%emt 0:00:05]} 46. Re3 {[%emt 0:00:00]} f6 {[%emt 0:00:02]} 47. c4 {[%emt 0:00:00]} Rd8 {[%emt 0:00:21]} 48. Bf1 {[%emt 0:00:42]} Rd1 {[%emt 0:00:11]} 49. Kg2 {[%emt 0:00:15]} Rb1 {[%emt 0:01:39]} 50. b5 {[%emt 0:00:02]} Kf7 {[%emt 0:03:06]} 51. g4 {[%emt 0:00:41]} Bd4 {[%emt 0:00:56]} 52. Re4 {[%emt 0:00:50]} c5 {[%emt 0:00:14]} 53. Re2 {[%emt 0:00:18]} Ra1 {[%emt 0:00:40]} 54. Rc2 {[%emt 0:01:00]} a5 {[%emt 0:01:30]} 55. bxa6 {[%emt 0:00:39]} bxa6 {[%emt 0:00:14]} 56. Be2 {[%emt 0:00:14]} a5 {[%emt 0:00:22]} 57. Rd2 {[%emt 0:00:31]} a4 {[%emt 0:00:05]} 58. Bd1 {[%emt 0:00:46]} Ke6 {[%emt 0:00:03]} 59. Kf3 {[%emt 0:00:17]} a3 {[%emt 0:00:27]} 60. Bb3 {[%emt 0:00:15]} Kd6 {[%emt 0:00:16]} 61. Ke2 {[%emt 0:00:57]} Rh1 {[%emt 0:00:53]} 62. Ra2 {[%emt 0:00:27]} Bb2 {[%emt 0:00:06]} 63. Bc2 {[%emt 0:00:14]} g5 {[%emt 0:00:18]} 64. Be4 {[%emt 0:00:26]} Rxh3 {[%emt 0:00:06]} 65. Bd3 {[%emt 0:00:24]} Ke5 {[%emt 0:00:03]} 66. Bf5 {[%emt 0:00:10]} Kd4 {[%emt 0:00:03]} 67. Bc2 {[%emt 0:00:27]} Rh2+ {[%emt 0:00:09]} 68. Kd1 {[%emt 0:00:03]} Kc3 {[%emt 0:00:04]} 69. Ba4 {[%emt 0:00:13]} Kxc4 {[%emt 0:00:22]} 70. Bc2 {[%emt 0:00:13]} Rg2 {[%emt 0:00:18]} 71. Be4 {[%emt 0:02:56]} Rxg4 {[%emt 0:00:14]} 72. Bc2 {[%emt 0:00:00]} Rg2 {[%emt 0:00:07]} 0-1

[Event "34th MPL National U14G-ch 2022"]
[Site "Ahmedabad"]
[Date "2022.05.11"]
[Round "6.5"]
[White "Chaarvi Choudhury"]
[Black "Rajanya Datta"]
[Result "0-1"]
[ECO "C80"]
[WhiteElo "1456"]
[BlackElo "1589"]
[Annotator "NA RC COMBH"]
[PlyCount "104"]
[EventDate "2022.05.09"]
[EventType "swiss"]
[EventCountry "IND"]
[SourceTitle "playchess.com"]
[Source "ChessBase"]
[SourceQuality "1"]
[TimeControl "5400+30"]

1. e4 {[%emt 0:02:19]} e5 {[%emt 0:00:25]} 2. Nf3 {[%emt 0:00:03]} Nc6 {[%emt 0:00:10]} 3. Bb5 {[%emt 0:00:06]} a6 {[%emt 0:00:10]} 4. Ba4 {[%emt 0:00:07]} Nf6 {[%emt 0:00:14]} 5. O-O {[%emt 0:00:10]} Nxe4 {[%emt 0:00:11]} 6. d4 {[%emt 0:03:12]} b5 {[%emt 0:00:12]} 7. Bb3 {[%emt 0:00:08]} d5 {[%emt 0:00:09]} 8. dxe5 {[%emt 0:03:04]} Be6 {[%emt 0:00:32]} 9. Be3 {[%emt 0:06:12]} Bc5 {[%emt 0:08:43]} 10. Bxc5 {[%emt 0:06:08]} Nxc5 {[%emt 0:00:19]} 11. Re1 {[%emt 0:10:53]} O-O {[%emt 0:02:11]} 12. c3 {[%emt 0:04:18]} Re8 {[%emt 0:06:16]} 13. h3 {[%emt 0:01:47]} Nxb3 {[%emt 0:02:08]} 14. axb3 {[%emt 0:00:11]} h6 {[%emt 0:02:55]} 15. b4 {[%emt 0:02:44]} a5 {[%emt 0:08:32]} 16. Nd4 {[%emt 0:57:08]} Nxd4 {[%emt 0:05:54]} 17. Qxd4 {[%emt 0:00:00]} axb4 {[%emt 0:01:56]} 18. Rxa8 {[%emt 0:00:00]} Qxa8 {[%emt 0:00:06]} 19. Qxb4 {[%emt 0:00:00]} Qc6 {[%emt 0:07:45]} 20. Na3 {[%emt 0:00:00]} Bd7 {[%emt 0:02:46]} 21. Nc2 {[%emt 0:00:00]} Qg6 {[%emt 0:02:08]} 22. Qb3 {[%emt 0:00:00]} Bxh3 {[%emt 0:01:23]} 23. Qxd5 {[%emt 0:00:00]} Bxg2 {[%emt 0:00:51]} 24. Qxg2 {[%emt 0:00:00]} Qxc2 {[%emt 0:00:05]} 25. f4 {[%emt 0:00:00]} Qf5 {[%emt 0:00:36]} 26. Qe4 {[%emt 0:00:00]} Qg4+ {[%emt 0:01:34]} 27. Kf2 {[%emt 0:00:00]} Rd8 {[%emt 0:01:28]} 28. Qe3 {[%emt 0:00:00]} Qf5 {[%emt 0:00:46]} 29. Qf3 {[%emt 0:00:00]} g6 {[%emt 0:08:27]} 30. Kg3 {[%emt 0:00:00]} h5 {[%emt 0:03:19]} 31. Rd1 {[%emt 0:00:00]} h4+ {[%emt 0:01:44]} 32. Kxh4 {[%emt 0:00:00]} Rxd1 {[%emt 0:00:06]} 33. Qxd1 {[%emt 0:00:00]} Qxf4+ {[%emt 0:00:04]} 34. Kh3 {[%emt 0:00:00]} Qf5+ {[%emt 0:00:08]} 35. Kg2 {[%emt 0:00:00]} Qxe5 {[%emt 0:00:15]} 36. Qd2 {[%emt 0:00:00]} Kg7 {[%emt 0:00:34]} 37. Kf3 {[%emt 0:00:08]} c6 {[%emt 0:00:12]} 38. Kg4 {[%emt 0:02:06]} Qd5 {[%emt 0:00:50]} 39. Qf2 {[%emt 0:00:37]} Qf5+ 40. Qxf5 {[%emt 0:00:30]} gxf5+ 41. Kg5 {[%emt 0:00:30]} f4 42. Kxf4 {[%emt 0:00:30]} Kf6 43. b3 {[%emt 0:00:30]} Ke6 44. Ke4 {[%emt 0:00:30]} c5 45. c4 {[%emt 0:00:30]} f5+ 46. Kf4 {[%emt 0:00:30]} b4 47. Kf3 {[%emt 0:00:30]} Ke5 48. Ke3 {[%emt 0:00:30]} f4+ 49. Kd3 {[%emt 0:00:30]} Kf5 50. Kd2 {[%emt 0:00:30]} Ke4 51. Ke2 {[%emt 0:00:30]} Kd4 52. Kf3 {[%emt 0:00:30]} Kc3 0-1

[Event "34th MPL National U14G-ch 2022"]
[Site "Ahmedabad"]
[Date "2022.05.11"]
[Round "6.6"]
[White "Sanikommu Manasvi"]
[Black "Arshiya Das"]
[Result "1/2-1/2"]
[ECO "A05"]
[WhiteElo "1399"]
[BlackElo "1456"]
[Annotator "NA RC COMBH"]
[PlyCount "61"]
[EventDate "2022.05.09"]
[EventType "swiss"]
[EventCountry "IND"]
[SourceTitle "playchess.com"]
[Source "ChessBase"]
[SourceQuality "1"]
[TimeControl "5400+30"]

1. e4 {[%emt 0:01:17]} c5 {[%emt 0:00:04]} 2. Nf3 {[%emt 0:00:10]} d6 {[%emt 0:00:04]} 3. d3 {[%emt 0:01:07]} Nc6 {[%emt 0:00:35]} 4. g3 {[%emt 0:00:41]} Nf6 {[%emt 0:00:18]} 5. Bg2 {[%emt 0:00:35]} g6 {[%emt 0:00:10]} 6. O-O {[%emt 0:01:13]} Bg7 {[%emt 0:00:06]} 7. Nbd2 {[%emt 0:01:46]} O-O {[%emt 0:00:34]} 8. Re1 {[%emt 0:01:42]} Qc7 {[%emt 0:02:38]} 9. Nf1 {[%emt 0:02:40]} d5 {[%emt 0:07:39]} 10. exd5 {[%emt 0:05:14]} Nxd5 {[%emt 0:00:12]} 11. h4 {[%emt 0:08:28]} Rd8 {[%emt 0:03:04]} 12. Qe2 {[%emt 0:04:49]} Bg4 {[%emt 0:03:12]} 13. N1h2 {[%emt 0:00:48]} Nd4 {[%emt 0:00:33]} 14. Qd1 {[%emt 0:04:03]} Nxf3+ {[%emt 0:03:34]} 15. Bxf3 {[%emt 0:01:52]} Bxf3 {[%emt 0:05:53]} 16. Qxf3 {[%emt 0:00:52]} Nb4 {[%emt 0:02:54]} 17. Qe2 {[%emt 0:02:52]} Qa5 {[%emt 0:14:48]} 18. Rd1 {[%emt 0:07:00]} Qa6 {[%emt 0:20:01]} 19. Ng4 {[%emt 0:07:35]} f5 {[%emt 0:04:52]} 20. Nh6+ {[%emt 0:04:50]} Kf8 {[%emt 0:01:03]} 21. Bg5 {[%emt 0:05:09]} Re8 {[%emt 0:04:09]} 22. c3 {[%emt 0:09:36]} Nd5 {[%emt 0:00:30]} 23. Qf3 {[%emt 0:01:58]} Nf6 {[%emt 0:01:32]} 24. d4 {[%emt 0:02:33]} cxd4 {[%emt 0:01:03]} 25. Rxd4 {[%emt 0:00:52]} Ng8 {[%emt 0:02:24]} 26. Nxg8 {[%emt 0:04:31]} Bxd4 {[%emt 0:00:33]} 27. Bxe7+ {[%emt 0:01:54]} Kxg8 {[%emt 0:01:20]} 28. Qd5+ {[%emt 0:00:21]} Kg7 {[%emt 0:00:26]} 29. Qxd4+ {[%emt 0:00:42]} Kf7 {[%emt 0:00:09]} 30. Bg5 {[%emt 0:03:14]} Qe6 31. Rd1 {[%emt 0:00:30]} 1/2-1/2

[Event "34th MPL National U14G-ch 2022"]
[Site "Ahmedabad"]
[Date "2022.05.11"]
[Round "6.7"]
[White "Aswinika Mani R"]
[Black "Rout Yashita"]
[Result "1/2-1/2"]
[ECO "C54"]
[WhiteElo "1408"]
[BlackElo "1718"]
[Annotator "NA RC COMBH"]
[PlyCount "77"]
[EventDate "2022.05.09"]
[EventType "swiss"]
[EventCountry "IND"]
[SourceTitle "playchess.com"]
[Source "ChessBase"]
[SourceQuality "1"]
[TimeControl "5400+30"]

1. e4 {[%emt 0:00:23]} e5 {[%emt 0:00:42]} 2. Nf3 {[%emt 0:00:12]} Nc6 {[%emt 0:00:33]} 3. Bc4 {[%emt 0:00:08]} Bc5 {[%emt 0:00:30]} 4. c3 {[%emt 0:00:20]} Nf6 {[%emt 0:00:12]} 5. d3 {[%emt 0:00:26]} d6 {[%emt 0:00:26]} 6. h3 {[%emt 0:00:07]} a6 {[%emt 0:00:29]} 7. b4 {[%emt 0:00:57]} Ba7 {[%emt 0:00:52]} 8. a4 {[%emt 0:00:48]} h6 {[%emt 0:01:00]} 9. Qb3 {[%emt 0:03:18]} Qe7 {[%emt 0:01:44]} 10. Be3 {[%emt 0:01:46]} Bxe3 {[%emt 0:02:36]} 11. fxe3 {[%emt 0:00:36]} Nd8 {[%emt 0:10:04]} 12. Nbd2 {[%emt 0:06:11]} Be6 {[%emt 0:11:31]} 13. O-O-O {[%emt 0:04:42]} Bxc4 {[%emt 0:04:50]} 14. Nxc4 {[%emt 0:04:23]} Ne6 {[%emt 0:01:58]} 15. Rhf1 {[%emt 0:08:33]} Qd7 {[%emt 0:07:06]} 16. d4 {[%emt 1:05:40]} b5 {[%emt 0:08:34]} 17. axb5 {[%emt 0:00:00]} axb5 {[%emt 0:00:30]} 18. Ncxe5 {[%emt 0:00:00]} dxe5 {[%emt 0:04:59]} 19. dxe5 {[%emt 0:00:00]} Qc6 {[%emt 0:04:50]} 20. exf6 {[%emt 0:00:00]} gxf6 {[%emt 0:07:53]} 21. Kb2 {[%emt 0:00:00]} Qxe4 {[%emt 0:05:20]} 22. Qd5 {[%emt 0:00:00]} Qxd5 {[%emt 0:01:34]} 23. Rxd5 {[%emt 0:00:00]} c6 {[%emt 0:04:00]} 24. Rf5 {[%emt 0:00:00]} Ke7 {[%emt 0:03:50]} 25. Nd2 {[%emt 0:00:00]} Rhg8 {[%emt 0:02:23]} 26. g4 {[%emt 0:00:00]} Rgd8 {[%emt 0:00:51]} 27. Ne4 {[%emt 0:00:00]} Ng5 {[%emt 0:00:46]} 28. Nxg5 {[%emt 0:00:00]} hxg5 {[%emt 0:00:06]} 29. R1f2 {[%emt 0:00:00]} Rd6 {[%emt 0:00:20]} 30. e4 {[%emt 0:00:00]} Re6 {[%emt 0:00:56]} 31. e5 {[%emt 0:00:00]} Rxe5 {[%emt 0:00:50]} 32. Rxf6 {[%emt 0:00:00]} Re2+ {[%emt 0:00:12]} 33. Rxe2+ {[%emt 0:00:00]} Kxf6 {[%emt 0:00:06]} 34. Rf2+ {[%emt 0:00:00]} Ke6 {[%emt 0:02:06]} 35. Kb3 {[%emt 0:00:00]} Ra1 {[%emt 0:00:56]} 36. Re2+ {[%emt 0:00:00]} Kd6 {[%emt 0:00:40]} 37. Rf2 {[%emt 0:00:00]} Ke6 {[%emt 0:00:32]} 38. Re2+ {[%emt 0:00:00]} Kf6 {[%emt 0:01:38]} 39. Rf2+ {[%emt 0:00:00]} 1/2-1/2

[Event "34th MPL National U14G-ch 2022"]
[Site "Ahmedabad"]
[Date "2022.05.11"]
[Round "6.8"]
[White "Anupam M Sreekumar"]
[Black "Tejasvee Naresh Singh"]
[Result "1-0"]
[ECO "B52"]
[WhiteElo "1673"]
[BlackElo "1351"]
[Annotator "NA RC COMBH"]
[PlyCount "95"]
[EventDate "2022.05.09"]
[EventType "swiss"]
[EventCountry "IND"]
[SourceTitle "playchess.com"]
[Source "ChessBase"]
[SourceQuality "1"]
[TimeControl "5400+30"]

1. e4 {[%emt 0:00:31]} c5 {[%emt 0:00:10]} 2. Nf3 {[%emt 0:00:06]} d6 {[%emt 0:00:07]} 3. Bb5+ {[%emt 0:00:13]} Bd7 {[%emt 0:00:09]} 4. Bxd7+ {[%emt 0:00:10]} Qxd7 {[%emt 0:00:05]} 5. c4 {[%emt 0:00:12]} Nc6 {[%emt 0:00:24]} 6. d4 {[%emt 0:00:30]} cxd4 {[%emt 0:00:42]} 7. Nxd4 {[%emt 0:00:07]} e6 {[%emt 0:01:32]} 8. Nc3 {[%emt 0:00:29]} Nf6 {[%emt 0:01:26]} 9. Be3 {[%emt 0:00:37]} Be7 {[%emt 0:03:31]} 10. O-O {[%emt 0:01:25]} O-O {[%emt 0:01:01]} 11. Rc1 {[%emt 0:01:25]} Rac8 {[%emt 0:06:40]} 12. b3 {[%emt 0:00:54]} Rfd8 {[%emt 0:05:06]} 13. h3 {[%emt 0:13:05]} Qe8 {[%emt 0:10:10]} 14. Nxc6 {[%emt 0:17:24]} Qxc6 {[%emt 0:00:27]} 15. Qf3 {[%emt 0:00:57]} b6 {[%emt 0:11:14]} 16. Rfd1 {[%emt 0:03:27]} Rd7 {[%emt 0:11:13]} 17. Rd3 {[%emt 0:03:49]} Qb7 {[%emt 0:08:46]} 18. Rcd1 {[%emt 0:01:01]} Rcd8 {[%emt 0:02:23]} 19. Bg5 {[%emt 0:07:39]} h6 {[%emt 0:07:39]} 20. Bh4 {[%emt 0:00:43]} Ne8 {[%emt 0:13:22]} 21. Bxe7 {[%emt 0:08:35]} Rxe7 {[%emt 0:00:07]} 22. e5 {[%emt 0:01:04]} Qxf3 {[%emt 0:00:34]} 23. gxf3 {[%emt 0:05:07]} Red7 {[%emt 0:03:37]} 24. exd6 {[%emt 0:03:07]} Rxd6 {[%emt 0:00:35]} 25. Rxd6 {[%emt 0:30:23]} Rxd6 {[%emt 0:00:35]} 26. Rxd6 {[%emt 0:00:00]} Nxd6 {[%emt 0:00:07]} 27. Kf1 {[%emt 0:00:00]} Kf8 {[%emt 0:00:35]} 28. Ke2 {[%emt 0:00:00]} Ke7 {[%emt 0:00:37]} 29. Kd3 {[%emt 0:00:00]} Kf6 {[%emt 0:03:16]} 30. Ne4+ {[%emt 0:00:00]} Ke7 {[%emt 0:03:57]} 31. Nxd6 {[%emt 0:00:00]} Kxd6 {[%emt 0:00:05]} 32. f4 {[%emt 0:00:00]} g6 {[%emt 0:02:44]} 33. h4 {[%emt 0:00:00]} f6 {[%emt 0:00:56]} 34. b4 {[%emt 0:00:00]} e5 {[%emt 0:02:34]} 35. Ke4 {[%emt 0:00:00]} exf4 {[%emt 0:00:57]} 36. Kxf4 {[%emt 0:00:00]} a5 {[%emt 0:00:31]} 37. a3 {[%emt 0:00:00]} a4 {[%emt 0:00:34]} 38. Ke4 {[%emt 0:00:00]} h5 {[%emt 0:00:30]} 39. f4 {[%emt 0:00:00]} Ke6 {[%emt 0:00:31]} 40. c5 {[%emt 0:00:00]} bxc5 {[%emt 0:00:19]} 41. bxc5 {[%emt 0:00:02]} Kd7 {[%emt 0:00:33]} 42. Kd5 {[%emt 0:00:02]} g5 {[%emt 0:00:29]} 43. fxg5 {[%emt 0:00:21]} fxg5 {[%emt 0:00:10]} 44. hxg5 {[%emt 0:00:07]} h4 {[%emt 0:00:18]} 45. Ke4 {[%emt 0:00:06]} h3 {[%emt 0:00:18]} 46. Kf3 {[%emt 0:00:02]} h2 {[%emt 0:00:05]} 47. Kg2 {[%emt 0:00:06]} h1=Q+ {[%emt 0:00:03]} 48. Kxh1 {[%emt 0:00:07]} 1-0

[Event "34th MPL National U14G-ch 2022"]
[Site "Ahmedabad"]
[Date "2022.05.12"]
[Round "7.1"]
[White "Mrittika Mallick"]
[Black "Shreya G Hipparagi"]
[Result "1/2-1/2"]
[ECO "C54"]
[WhiteElo "1982"]
[BlackElo "1548"]
[Annotator "TA"]
[PlyCount "76"]
[EventDate "2022.05.09"]
[EventType "swiss"]
[EventCountry "IND"]
[SourceTitle "playchess.com"]
[Source "ChessBase"]
[SourceQuality "1"]
[TimeControl "5400+30"]

{[%evp 11,76,6,24,15,20,11,20,9,34,18,53,37,55,41,40,21,24,-6,0,-7,0,0,-13,-47,-13,-28,-17,-16,-17,-18,0,-35,-26,-64,-32,-33,30,-25,20,0,0,0,0,0,0,-13,0,0,0,0,0,0,0,-5,0,0,0,0,0,0,0,0,0,0,0,0,0]} 1. e4 {[%emt 0:00:52]} e5 {[%emt 0:00:56]} 2. Nf3 {[%emt 0:00:15]} Nc6 {[%emt 0:00:23]} 3. Bc4 {[%emt 0:00:58]} Bc5 {[%emt 0:00:43]} 4. c3 {[%emt 0:00:45]} Nf6 {[%emt 0:00:36]} 5. d3 {[%emt 0:01:06]} a6 {[%emt 0:01:41]} 6. Bb3 {[%emt 0:01:40]} d6 {[%emt 0:01:23]} 7. h3 {[%emt 0:00:57] C54: Giuoco Piano: 4 c3 Nf6, main lines with 5 d4 and 5 d3.} h6 {[%emt 0:00:56]} 8. Nbd2 {[%emt 0:01:05][%cal Bb1d2,Bd2f1,Bf1g3][%mdl 32]} O-O {[%emt 0:01:02]} 9. Nf1 {[%emt 0:06:01]} Ne7 {[%emt 0:03:22]} 10. g4 {[%emt 0:03:46][%cal Bg2g4,Bg4g5][%mdl 32]} Nh7 {[%emt 0:07:33] [#]} 11. g5 $146 {[%emt 0:08:18]} ({Predecessor:} 11. Ng3 Be6 12. Bc2 Ng6 13. Nf5 d5 14. Qe2 b5 15. b3 Qd7 16. Bd2 Ba3 17. Rd1 Rfe8 18. O-O Bf8 19. N3h4 Nf4 20. Bxf4 exf4 21. Qf3 Ng5 22. Qg2 {½-½ (22) Semina,S (2204)-Leveikina,J Germany 2001}) 11... h5 {[%emt 0:02:07]} 12. Ng3 {[%emt 0:10:41]} (12. Nh4 $5 {[%cal Rg5g6]}) 12... g6 $1 {[%emt 0:01:39]} 13. Qe2 {[%emt 0:02:53]} Be6 {[%emt 0:02:34]} 14. Be3 {[%emt 0:03:49]} Bxe3 {[%emt 0:04:33]} 15. fxe3 {[%emt 0:08:20]} Qd7 {[%emt 0:04:00]} 16. Bxe6 {[%emt 0:05:15]} Qxe6 {[%emt 0:01:58]} 17. Kd2 {[%emt 0:04:17]} f5 {[%emt 0:03:46]} 18. gxf6 {[%emt 0:13:09]} Rxf6 {[%emt 0:01:56] With the idea ...Raf8.} 19. Qg2 $1 {[%emt 0:02:17]} Raf8 {[%emt 0:03:15]} 20. Rhf1 {[%emt 0:01:25]} Kh8 {[%emt 0:00:50]} 21. b3 {[%emt 0:02:55]} a5 {[%emt 0:02:47][%cal Ba6a5,Ba5a4][%mdl 32]} 22. Nh4 {[%emt 0:06:39]} Qf7 {[%emt 0:06:53][%cal Oa5a4]} (22... a4 $5 23. Kc2 Qf7 $15) 23. Ke2 {[%emt 0:02:03]} c6 {[%emt 0:02:22]} (23... a4 $15 24. Rxf6 Nxf6) 24. Rf3 {[%emt 0:02:14]} (24. Rxf6 $142 Qxf6 25. Nf3) 24... Qe6 {[%emt 0:02:17]} (24... Ng5 $2 25. Rxf6 Qxf6 26. Rf1 $18) (24... a4 $5 25. bxa4 Rxf3 26. Nxf3 Ra8 $11) 25. Raf1 {[%emt 0:01:54] The position is equal.} a4 {[%emt 0:02:40]} 26. Rxf6 {[%emt 0:02:20]} Rxf6 {[%emt 0:00:08]} 27. c4 {[%emt 0:02:03]} b5 {[%emt 0:00:59]} 28. Rc1 {[%emt 0:01:57]} axb3 {[%emt 0:01:44]} 29. axb3 {[%emt 0:00:02]} bxc4 {[%emt 0:00:27]} 30. bxc4 {[%emt 0:00:47]} Rf8 {[%emt 0:00:42]} 31. Nf3 {[%emt 0:00:50]} c5 {[%emt 0:01:01]} 32. Rf1 {[%emt 0:00:41]} Nc6 {[%emt 0:01:28]} 33. Ng5 {[%emt 0:01:19]} Qe7 {[%emt 0:04:04]} 34. Nxh7 {[%emt 0:00:31]} Kxh7 {[%emt 0:00:16]} 35. Rxf8 {[%emt 0:00:25]} Qxf8 {[%emt 0:00:05]} 36. Nf1 {[%emt 0:00:20]} Qf6 {[%emt 0:01:51]} 37. Nd2 {[%emt 0:00:31]} g5 {[%emt 0:00:12]} 38. Nb1 {[%emt 0:00:31]} Kh6 {[%emt 0:01:02] Weighted Error Value: White=0.10 (very precise) /Black=0.11 (very precise)} 1/2-1/2

[Event "34th MPL National U14G-ch 2022"]
[Site "Ahmedabad"]
[Date "2022.05.12"]
[Round "7.2"]
[White "Rajanya Datta"]
[Black "Bhat Sannidhi Ramakrishna"]
[Result "1/2-1/2"]
[ECO "B01"]
[WhiteElo "1589"]
[BlackElo "1373"]
[Annotator "NA RC COMBH"]
[PlyCount "60"]
[EventDate "2022.05.09"]
[EventType "swiss"]
[EventCountry "IND"]
[SourceTitle "playchess.com"]
[Source "ChessBase"]
[SourceQuality "1"]
[TimeControl "5400+30"]

1. e4 {[%emt 0:01:18]} d5 {[%emt 0:00:11]} 2. exd5 {[%emt 0:00:16]} Qxd5 {[%emt 0:00:08]} 3. Nc3 {[%emt 0:00:07]} Qa5 {[%emt 0:00:08]} 4. d4 {[%emt 0:00:14]} c6 {[%emt 0:00:16]} 5. Bc4 {[%emt 0:00:50]} Nf6 {[%emt 0:00:50]} 6. Nf3 {[%emt 0:01:01]} Bg4 {[%emt 0:01:27]} 7. h3 {[%emt 0:00:58]} Bxf3 {[%emt 0:01:13]} 8. Qxf3 {[%emt 0:00:20]} e6 {[%emt 0:00:52]} 9. Bd2 {[%emt 0:05:17]} Qc7 {[%emt 0:02:53]} 10. O-O-O {[%emt 0:02:16]} Nbd7 {[%emt 0:02:18]} 11. Rhe1 {[%emt 0:05:13]} O-O-O {[%emt 0:03:30]} 12. Bb3 {[%emt 0:02:06]} Bb4 {[%emt 0:12:15]} 13. a3 {[%emt 0:07:04]} Bd6 {[%emt 0:01:42]} 14. Kb1 {[%emt 0:05:59]} h6 {[%emt 0:17:05]} 15. g4 {[%emt 0:09:43]} Nf8 {[%emt 0:07:43]} 16. Ne4 {[%emt 0:07:19]} Nxe4 {[%emt 0:06:38]} 17. Qxe4 {[%emt 0:00:17]} g5 {[%emt 0:00:10]} 18. d5 {[%emt 0:16:01]} exd5 {[%emt 0:11:14]} 19. Qd4 {[%emt 0:00:53]} Ne6 {[%emt 0:02:05]} 20. Qxa7 {[%emt 0:01:02]} Bc5 {[%emt 0:03:36]} 21. Qa4 {[%emt 0:01:22]} Bxf2 {[%emt 0:11:18]} 22. Rf1 {[%emt 0:00:10]} Bd4 {[%emt 0:00:07]} 23. Qa8+ {[%emt 0:01:36]} Qb8 {[%emt 0:00:34]} 24. Qxb8+ {[%emt 0:01:02]} Kxb8 {[%emt 0:00:01]} 25. Rxf7 {[%emt 0:00:16]} Rhf8 {[%emt 0:03:47]} 26. Rxf8 {[%emt 0:06:24]} Rxf8 {[%emt 0:00:14]} 27. c4 {[%emt 0:00:08]} dxc4 {[%emt 0:06:14]} 28. Bxc4 {[%emt 0:00:10]} Nf4 {[%emt 0:00:07]} 29. Bxf4+ {[%emt 0:09:25]} Rxf4 {[%emt 0:00:03]} 30. Rf1 {[%emt 0:01:45]} Rxf1+ {[%emt 0:04:50]} 1/2-1/2

[Event "34th MPL National U14G-ch 2022"]
[Site "Ahmedabad"]
[Date "2022.05.12"]
[Round "7.3"]
[White "Sneha Halder"]
[Black "Roy Aanya"]
[Result "1/2-1/2"]
[ECO "E65"]
[WhiteElo "1557"]
[BlackElo "1560"]
[Annotator "NA RC COMBH"]
[PlyCount "75"]
[EventDate "2022.05.09"]
[EventType "swiss"]
[EventCountry "IND"]
[SourceTitle "playchess.com"]
[Source "ChessBase"]
[SourceQuality "1"]
[TimeControl "5400+30"]

1. d4 {[%emt 0:02:11]} Nf6 {[%emt 0:00:08]} 2. c4 {[%emt 0:00:19]} c5 {[%emt 0:00:04]} 3. e3 {[%emt 0:00:15]} g6 {[%emt 0:00:09]} 4. Nf3 {[%emt 0:02:15]} Bg7 {[%emt 0:00:15]} 5. Nc3 {[%emt 0:01:30]} O-O {[%emt 0:00:13]} 6. g3 {[%emt 0:02:33]} d6 {[%emt 0:00:25]} 7. Bg2 {[%emt 0:01:20]} Na6 {[%emt 0:01:31]} 8. O-O {[%emt 0:01:12]} Nc7 {[%emt 0:00:42]} 9. b3 {[%emt 0:01:10]} a6 {[%emt 0:00:30]} 10. Bb2 {[%emt 0:00:38]} Rb8 {[%emt 0:00:36]} 11. dxc5 {[%emt 0:02:34]} dxc5 {[%emt 0:02:56]} 12. Qxd8 {[%emt 0:00:41]} Rxd8 {[%emt 0:00:02]} 13. Na4 {[%emt 0:00:14]} Nd7 {[%emt 1:29:29]} 14. Bxg7 {[%emt 0:00:11]} Kxg7 {[%emt 0:00:00]} 15. Rad1 {[%emt 0:00:04]} Ne6 {[%emt 0:00:00]} 16. Rd2 {[%emt 0:01:53]} b5 {[%emt 0:00:00]} 17. Nb2 {[%emt 0:00:20]} Bb7 {[%emt 0:00:00]} 18. Rfd1 {[%emt 0:01:09]} Nb6 {[%emt 0:00:00]} 19. Ne5 {[%emt 0:00:42]} Bxg2 {[%emt 0:00:00]} 20. Kxg2 {[%emt 0:00:19]} Rxd2 {[%emt 0:00:00]} 21. Rxd2 {[%emt 0:00:20]} f6 {[%emt 0:00:00]} 22. Nc6 {[%emt 0:00:44]} Rb7 {[%emt 0:00:00]} 23. Na5 {[%emt 0:00:41]} Rd7 {[%emt 0:00:00]} 24. Rxd7 {[%emt 0:00:10]} Nxd7 {[%emt 0:00:00]} 25. a4 {[%emt 0:00:24]} Nc7 {[%emt 0:00:00]} 26. Nd3 {[%emt 0:01:41]} bxa4 {[%emt 0:00:00]} 27. bxa4 {[%emt 0:00:07]} e5 {[%emt 0:00:00]} 28. Nb7 {[%emt 0:01:36]} Ne6 {[%emt 0:00:00]} 29. e4 {[%emt 0:01:06]} f5 {[%emt 0:00:00]} 30. f3 {[%emt 0:01:01]} fxe4 {[%emt 0:00:00]} 31. fxe4 {[%emt 0:00:09]} Kf6 {[%emt 0:00:00]} 32. a5 {[%emt 0:00:30]} Ke7 {[%emt 0:00:00]} 33. h4 {[%emt 0:00:55]} h5 {[%emt 0:00:00]} 34. Kf2 {[%emt 0:03:16]} Kf6 {[%emt 0:00:00]} 35. Ke3 {[%emt 0:00:38]} Ke7 {[%emt 0:00:00]} 36. Kd2 {[%emt 0:02:31]} Kf6 {[%emt 0:00:00]} 37. Nd6 {[%emt 0:03:08]} g5 {[%emt 0:00:00]} 38. Nb7 {[%emt 0:01:42]} 1/2-1/2